bitfinex/quotes_ETHUSD_20241101
["timestamp","ask_amount","ask_price","bid_price","bid_amount"]
[1730491506099,3.97456,2516.0,2515.9,0.12434524]
[1730491506403,3.97456,2516.0,2515.8,0.12434524]
[1730491506795,3.97443,2516.1,2515.8,0.12434524]
[1730491508002,3.97461,2516.0,2515.8,0.12434524]
[1730491508503,3.97472,2515.9,2515.8,0.12434524]
[1730491508719,3.97472,2515.9,2515.7,0.12434524]
[1730491508720,3.97487,2515.8,2515.7,0.12434524]
[1730491508922,3.97503,2515.8,2515.4,0.12434524]
[1730491509211,3.97523,2515.6,2515.4,0.12434524]
[1730491509421,3.97523,2515.6,2515.3,0.47942386]
[1730491509709,3.97499,2515.8,2515.4,1.45687134]
[1730491509861,3.97499,2515.8,2515.4,1.58121658]
[1730491510293,3.97515,2515.7,2515.4,1.58121658]
[1730491510497,3.97515,2515.7,2515.4,1.45687134]
[1730491511495,3.97515,2515.7,2515.3,0.05962354]
[1730491511496,3.97519,2515.6,2515.3,0.05962354]
[1730491512116,3.97515,2515.7,2515.3,0.05962354]
[1730491512300,3.97515,2515.7,2515.5,1.45687134]
[1730491512301,3.97519,2515.6,2515.5,1.45687134]
[1730491512507,3.97519,2515.6,2515.3,1.51649488]
[1730491513713,7.95033,2515.7,2515.3,1.51649488]
[1730491513880,3.97527,2515.6,2515.3,1.51649488]
[1730491514476,3.97515,2515.7,2515.5,1.45687134]
[1730491514984,3.9749,2515.8,2515.5,1.45687134]
[1730491515187,3.9751,2515.7,2515.5,1.87217134]
[1730491515537,3.9749,2515.8,2515.3,1.93179488]
[1730491515696,3.97503,2515.7,2515.3,1.93179488]
[1730491515892,3.97503,2515.7,2515.3,2.92012337]
[1730491516515,3.97521,2515.6,2515.3,2.92012337]
[1730491516684,3.97521,2515.6,2515.3,1.51649488]
[1730491516892,8.75868,2515.9,2515.5,1.45687134]
[1730491517093,3.97456,2516.0,2515.6,0.4153]
[1730491517311,3.97456,2516.0,2515.7,1.45687134]
[1730491517697,3.97429,2516.2,2515.9,1.45687134]
[1730491518099,7.94866,2516.2,2515.9,1.45687134]
[1730491518307,0.8081,2516.4,2515.9,1.45687134]
[1730491518619,3.97451,2516.1,2515.6,7.35107176]
[1730491518989,3.97451,2516.1,2515.7,3.97499]
[1730491519394,3.97432,2516.2,2515.7,3.97499]
[1730491519885,3.97408,2516.3,2515.7,3.97499]
[1730491520384,3.97441,2516.1,2515.7,3.97499]
[1730491520590,3.97441,2516.1,2515.7,5.10759618]
[1730491522045,3.97408,2516.3,2515.7,5.10759618]
[1730491522221,3.97408,2516.3,2515.8,3.97483]
[1730491522596,0.8081,2516.4,2515.9,3.97468]
[1730491522803,3.97425,2516.2,2515.8,3.97483]
[1730491522983,3.97425,2516.2,2515.8,5.22067879]
[1730491524631,3.97425,2516.2,2515.8,1.24584879]
[1730491524843,3.97425,2516.2,2515.8,5.22067879]
[1730491525030,4.78215,2516.4,2515.9,3.9747]
[1730491525031,3.9741,2516.3,2515.9,3.9747]
[1730491525203,3.9741,2516.3,2515.9,0.4153]
[1730491526224,3.9742,2516.3,2515.9,0.4153]
[1730491526750,3.9741,2516.3,2515.9,5.43047549]
[1730491527051,3.97425,2516.2,2515.9,1.37637788]
[1730491527221,3.97411,2516.3,2515.9,0.4153]
[1730491527420,3.97411,2516.3,2515.7,3.97488]
[1730491527421,3.97466,2516.0,2515.7,0.1243563]
[1730491527621,4.77886,2516.0,2515.6,0.4153]
[1730491527826,3.97479,2515.9,2515.6,0.4153]
[1730491528381,3.97457,2516.0,2515.6,4.39042]
[1730491528736,3.97457,2516.0,2515.6,5.63031971]
[1730491529058,3.97457,2516.0,2515.7,0.1243563]
[1730491530868,3.97443,2516.1,2515.7,4.0993763]
[1730491531240,4.7752,2516.2,2515.7,4.0993763]
[1730491531447,4.7752,2516.2,2515.9,0.4153]
[1730491531448,3.9743,2516.2,2515.9,0.4153]
[1730491531740,3.97415,2516.3,2515.9,4.38998]
[1730491532067,0.8118,2516.6,2516.1,3.97428]
[1730491532068,4.78555,2516.6,2516.1,3.97428]
[1730491532229,4.78555,2516.6,2516.2,0.4153]
[1730491532572,3.97394,2516.4,2516.2,0.4153]
[1730491533248,3.9738,2516.5,2516.2,0.4153]
[1730491533503,3.97401,2516.4,2516.2,0.4153]
[1730491533712,3.9738,2516.5,2516.2,0.4153]
[1730491533713,3.97379,2516.5,2516.2,0.4153]
[1730491534081,4.78543,2516.6,2516.2,4.38954]
[1730491534383,3.97364,2516.6,2516.2,0.4153]
[1730491535496,3.97364,2516.6,2516.2,4.38953]
[1730491536208,3.97378,2516.5,2516.2,0.4153]
[1730491536814,3.97402,2516.4,2516.0,1.03420039]
[1730491537145,3.9744,2516.1,2516.0,0.12434765]
[1730491537443,3.9744,2516.1,2515.8,0.53965797]
[1730491539808,3.9744,2516.1,2515.9,0.12435797]
[1730491540345,3.9744,2516.1,2515.8,0.4153]
[1730491540346,3.9744,2516.1,2515.8,0.71102104]
[1730491540522,3.9744,2516.1,2515.8,0.83564629]
[1730491540727,3.9744,2516.1,2515.9,0.12436078]
[1730491541548,3.97427,2516.2,2515.9,0.12436078]
[1730491542544,3.97448,2516.1,2515.9,0.12436078]
[1730491543110,4.78549,2516.3,2515.9,0.12436078]
[1730491543307,4.452849,2516.2,2515.9,0.12436078]
[1730491543746,4.452849,2516.2,2515.8,4.09923078]
[1730491544145,4.452849,2516.2,2515.9,0.12436078]
[1730491544146,3.9743,2516.2,2515.9,0.12436078]
[1730491544660,3.9743,2516.2,2515.8,4.2709299]
[1730491544833,3.9743,2516.2,2515.9,0.12436132]
[1730491547956,3.9743,2516.2,2516.0,0.12436132]
[1730491548158,3.9743,2516.2,2515.9,0.12436132]
[1730491548459,3.9743,2516.2,2516.0,0.12436132]
[1730491548622,3.9743,2516.2,2515.9,0.12436132]
[1730491548817,3.9743,2516.2,2515.8,4.56693401]
[1730491549125,3.9743,2516.2,2516.0,0.12435856]
[1730491549330,0.875979,2516.2,2515.9,0.12435844]
[1730491549557,0.875979,2516.2,2515.8,0.2960599]
[1730491549558,4.79632,2515.9,2515.8,0.2960599]
[1730491553056,3.97509,2515.7,2515.4,0.42048683]
[1730491553228,3.97509,2515.7,2515.5,0.12438367]
[1730491553558,3.97509,2515.7,2515.4,0.59221676]
[1730491553771,3.97509,2515.7,2515.5,0.12438355]
[1730491554123,7.95023,2515.7,2515.5,0.12438355]
[1730491554322,3.97519,2515.6,2515.5,0.12438355]
[1730491555150,7.94993,2515.8,2515.5,0.12438355]
[1730491555662,3.97509,2515.7,2515.5,0.12438355]
[1730491557469,3.97509,2515.7,2515.4,0.29610316]
[1730491557627,3.97509,2515.7,2515.5,0.1243843]
[1730491560325,3.97509,2515.7,2515.6,0.1243843]
[1730491560655,3.97509,2515.7,2515.5,0.1243843]
[1730491561025,3.97509,2515.7,2515.6,0.1243843]
[1730491561225,3.97509,2515.7,2515.5,0.1243843]
[1730491561426,7.95025,2515.7,2515.6,0.12438352]
[1730491561620,7.95025,2515.7,2515.4,0.29610316]
[1730491561621,7.95025,2515.7,2515.5,0.12438352]
[1730491561857,7.95025,2515.7,2515.6,0.12438352]
[1730491562170,7.95025,2515.7,2515.5,0.12438352]
[1730491562374,7.95025,2515.7,2515.6,0.12438352]
[1730491562375,3.97509,2515.7,2515.6,0.12438352]
[1730491562533,3.97509,2515.7,2515.5,0.12438352]
[1730491562735,3.97509,2515.7,2515.6,0.12438352]
[1730491562929,3.97509,2515.7,2515.5,0.12438352]
[1730491563156,3.97509,2515.7,2515.6,0.12438352]
[1730491563343,3.97535,2515.5,2515.4,0.12438352]
[1730491563545,4.72925,2515.5,2515.4,0.12438352]
[1730491563778,3.97551,2515.4,2515.2,0.12438352]
[1730491564041,3.97566,2515.3,2515.0,0.1243985]
[1730491564236,3.97566,2515.3,2514.9,4.47121557]
[1730491564237,3.97566,2515.3,2515.1,0.1243985]
[1730491564556,3.97566,2515.3,2515.2,0.1243985]
[1730491564758,3.97566,2515.3,2515.0,0.1243985]
[1730491564959,3.97566,2515.3,2515.1,0.1243985]
[1730491565134,3.97566,2515.3,2515.0,0.1243985]
[1730491565338,3.97566,2515.3,2515.1,0.1243985]
[1730491565536,3.97566,2515.3,2514.9,3.97627]
[1730491565537,3.97566,2515.3,2515.0,0.1243985]
[1730491565774,3.97566,2515.3,2515.1,0.1243985]
[1730491565976,3.97566,2515.3,2515.0,0.1243985]
[1730491566348,3.97584,2515.2,2515.0,0.1243985]
[1730491566550,3.97584,2515.2,2514.8,4.88668557]
[1730491566551,3.97584,2515.2,2514.9,0.1243985]
[1730491566749,3.97584,2515.2,2515.0,0.1243985]
[1730491567034,4.80434,2515.0,2514.9,0.1243985]
[1730491567252,4.80434,2515.0,2514.7,0.1243985]
[1730491567253,3.97631,2514.9,2514.7,0.1243985]
[1730491567447,4.80434,2515.0,2514.6,0.1243985]
[1730491567448,3.97655,2514.8,2514.6,0.1243985]
[1730491567651,4.80485,2514.7,2514.5,0.42036614]
[1730491567854,3.97677,2514.6,2514.5,0.42036614]
[1730491568198,3.97677,2514.6,2514.2,0.19907122]
[1730491568199,3.97709,2514.4,2514.2,0.42036614]
[1730491568345,3.97693,2514.5,2514.0,2.07719357]
[1730491568546,3.97693,2514.5,2514.1,3.97755]
[1730491568791,3.97693,2514.5,2514.1,4.10196951]
[1730491570294,3.97693,2514.5,2514.1,3.97755]
[1730491570796,7.95399,2514.5,2514.0,3.97765]
[1730491571092,3.97693,2514.5,2514.0,3.97765]
[1730491571261,3.97693,2514.5,2514.0,5.23566133]
[1730491571468,3.97693,2514.5,2514.0,5.11121746]
[1730491574484,3.9768,2514.6,2514.1,3.97746]
[1730491574798,3.97701,2514.5,2514.1,3.97746]
[1730491574986,3.97701,2514.5,2514.1,4.92786775]
[1730491577862,0.8027,2514.9,2514.4,2.9649146]
[1730491578068,3.97561,2515.4,2513.7,3.0]
[1730491578069,3.97584,2515.2,2514.8,0.4153]
[1730491578282,3.97578,2515.3,2514.9,4.415461]
[1730491578283,3.97572,2515.3,2514.9,4.415461]
[1730491578901,3.97572,2515.3,2514.9,3.97627]
[1730491579061,3.97572,2515.3,2514.8,0.4153]
[1730491579062,3.97572,2515.3,2514.8,4.39173]
[1730491579266,7.95151,2515.3,2514.8,4.39173]
[1730491580086,7.9515,2515.3,2514.8,4.39173]
[1730491580918,3.97572,2515.3,2514.8,4.39173]
[1730491581070,7.95149,2515.3,2514.8,5.52504546]
[1730491581408,3.97572,2515.3,2514.8,5.52504546]
[1730491581967,7.95151,2515.3,2514.8,5.52504546]
[1730491582220,7.9515,2515.3,2514.8,5.52504546]
[1730491582427,0.8027,2515.4,2514.8,5.52504546]
[1730491582584,7.95151,2515.3,2514.8,5.52504546]
[1730491582991,3.97573,2515.3,2514.8,5.52504546]
[1730491583308,7.95149,2515.3,2514.8,5.52504546]
[1730491583507,3.97553,2515.4,2514.9,3.9762]
[1730491583924,3.97548,2515.5,2515.0,3.97606]
[1730491583925,3.97542,2515.5,2515.0,3.97606]
[1730491584124,3.97562,2515.4,2515.0,3.97606]
[1730491584694,7.95091,2515.5,2515.0,3.97606]
[1730491584889,3.97554,2515.4,2515.0,3.97606]
[1730491586139,3.97554,2515.4,2514.9,4.92639855]
[1730491586302,0.8039,2515.1,2514.6,4.39197]
[1730491586639,3.97627,2515.0,2514.2,0.4153]
[1730491586935,0.8039,2515.1,2514.3,3.97716]
[1730491587134,3.97638,2514.9,2514.3,3.97716]
[1730491587434,3.97638,2514.9,2514.2,0.4153]
[1730491587435,3.97669,2514.7,2514.2,4.3926]
[1730491587820,3.97669,2514.7,2514.3,3.97723]
[1730491590303,3.97669,2514.7,2514.2,4.39268]
[1730491590504,3.97669,2514.7,2514.0,2.9649146]
[1730491590505,3.97708,2514.5,2514.0,0.4153]
[1730491590814,3.97725,2514.3,2513.8,0.53974125]
[1730491591143,4.81005,2514.3,2513.8,0.53974125]
[1730491591318,3.97757,2514.1,2513.7,3.97816]
[1730491591705,3.97757,2514.1,2513.6,3.97828]
[1730491591706,4.458697,2514.1,2513.6,3.97828]
[1730491591905,3.9774,2514.2,2513.8,3.97801]
[1730491592103,4.81012,2514.3,2513.8,3.97797]
[1730491592341,3.97751,2514.2,2513.8,3.97797]
[1730491592846,7.95502,2514.2,2513.8,3.97797]
[1730491593060,3.97788,2513.9,2513.5,3.97843]
[1730491593345,3.97788,2513.9,2513.4,7.3587546]
[1730491593346,3.97801,2513.9,2513.4,7.3587546]
[1730491593564,3.97801,2513.9,2513.5,3.97849]
[1730491594259,3.97799,2513.9,2513.5,3.97841]
[1730491595121,3.97758,2514.1,2513.6,3.97827]
[1730491596549,3.97758,2514.1,2513.7,3.97819]
[1730491596753,3.9767,2514.7,2513.8,0.4153]
[1730491597063,0.8065,2514.5,2514.1,3.97747]
[1730491597266,4.78344,2514.5,2514.1,3.97747]
[1730491598557,3.97675,2514.7,2514.2,3.97739]
[1730491598740,3.97678,2514.6,2514.2,3.97739]
[1730491599230,3.97693,2514.5,2514.1,3.97754]
[1730491601429,3.97693,2514.5,2514.0,3.9776]
[1730491601682,0.8148,2514.3,2513.9,3.97785]
[1730491601845,0.8148,2514.3,2514.0,3.97772]
[1730491602230,0.8148,2514.3,2514.0,7.95536]
[1730491602433,3.97696,2514.5,2514.1,3.97754]
[1730491603280,3.97696,2514.5,2514.0,7.95526]
[1730491603772,3.97711,2514.4,2514.0,3.97762]
[1730491604134,3.97696,2514.5,2514.0,7.95524]
[1730491604887,7.95402,2514.5,2514.0,3.97762]
[1730491605438,0.877662,2514.5,2513.8,0.4153]
[1730491605669,3.97717,2514.4,2513.9,3.97781]
[1730491606509,3.97717,2514.4,2513.9,3.97779]
[1730491606784,3.97717,2514.4,2513.9,7.9556]
[1730491606970,3.97717,2514.4,2513.9,3.97779]
[1730491607338,4.73725,2514.3,2513.9,3.97779]
[1730491608893,0.76,2514.3,2513.9,3.97778]
[1730491609065,0.76,2514.3,2513.9,4.72602474]
[1730491609271,0.76,2514.3,2513.9,4.85047492]
[1730491609697,0.76,2514.3,2513.9,4.85047607]
[1730491610006,0.76,2514.3,2514.0,3.97761]
[1730491610683,0.76,2514.3,2513.9,4.72609474]
[1730491610886,0.76,2514.3,2513.9,4.10230134]
[1730491611061,0.76,2514.3,2513.9,3.97785]
[1730491611804,0.76,2514.3,2513.9,7.95563]
[1730491612333,0.76,2514.3,2513.9,3.97778]
[1730491613200,0.76,2514.3,2514.0,3.9777]
[1730491613498,0.76,2514.3,2514.0,4.10215096]
[1730491613713,0.76,2514.3,2514.0,3.9777]
[1730491613885,0.76,2514.3,2514.0,3.97764]
[1730491614703,3.97691,2514.6,2514.0,3.97757]
[1730491614704,4.74386,2514.5,2514.0,3.97757]
[1730491615906,3.9771,2514.4,2514.0,3.97757]
[1730491616324,7.95431,2514.4,2514.0,3.97757]
[1730491616524,3.9771,2514.4,2513.9,4.10229096]
[1730491616711,3.97731,2514.3,2513.9,4.10229096]
[1730491616913,3.97731,2514.3,2513.9,3.97784]
[1730491617523,3.97742,2514.2,2513.8,4.51776096]
[1730491617700,3.97725,2514.3,2513.9,3.97784]
[1730491617897,3.97772,2514.0,2513.9,0.12445096]
[1730491618102,3.97772,2514.0,2513.5,0.19912304]
[1730491618103,4.75362,2514.0,2513.5,4.59769349]
[1730491618299,4.75362,2514.0,2513.5,4.39857045]
[1730491618503,4.75362,2514.0,2513.5,5.5632174]
[1730491618793,4.75362,2514.0,2513.6,0.12445096]
[1730491619095,3.97789,2513.9,2513.6,0.12445096]
[1730491619288,3.97789,2513.9,2513.5,1.46028644]
[1730491619505,3.97811,2513.8,2513.5,0.12447606]
[1730491619689,3.97823,2513.7,2513.4,0.12447606]
[1730491620428,3.97817,2513.8,2513.4,0.12447606]
[1730491620429,0.761,2513.6,2513.4,0.12447606]
[1730491620735,4.73936,2513.6,2513.3,0.12447606]
[1730491620902,0.761,2513.6,2513.3,4.10328606]
[1730491621093,0.761,2513.6,2513.3,3.97881]
[1730491621303,0.761,2513.6,2513.3,4.10329292]
[1730491621510,0.761,2513.6,2513.3,0.12448292]
[1730491621511,4.7395,2513.6,2513.3,0.12448292]
[1730491621689,3.97857,2513.5,2513.1,4.39922077]
[1730491622336,0.761,2513.6,2513.2,3.97884]
[1730491622631,3.8005,2514.3,2513.2,2.96702553]
[1730491622928,4.77777,2514.3,2513.8,3.97792]
[1730491623308,3.9778,2514.0,2513.6,4.3935]
[1730491623492,4.73588,2513.9,2513.5,3.9785]
[1730491623731,0.7579,2513.9,2513.7,3.97806]
[1730491623933,0.7579,2514.1,2513.7,3.97806]
[1730491624133,0.7579,2514.1,2513.8,3.978]
[1730491624347,0.7579,2514.1,2513.7,3.97806]
[1730491624557,3.9772,2514.4,2514.0,3.9777]
[1730491624770,4.77579,2514.6,2514.1,3.97755]
[1730491624771,6.977,2514.5,2514.1,3.97755]
[1730491625132,4.77579,2514.6,2514.2,3.97738]
[1730491625335,0.7989,2514.6,2514.2,3.97738]
[1730491625567,4.77575,2514.6,2514.2,3.97738]
[1730491626030,0.7989,2514.6,2514.2,3.97738]
[1730491626231,0.7989,2514.6,2514.2,7.9547]
[1730491626431,3.97647,2514.8,2514.3,3.97717]
[1730491627069,3.97662,2514.7,2514.2,4.81433]
[1730491627245,3.97647,2514.8,2514.2,3.80402553]
[1730491627246,3.97646,2514.8,2514.2,3.80402553]
[1730491627452,3.97662,2514.7,2514.3,3.97722]
[1730491627989,4.76775,2514.5,2514.1,3.97747]
[1730491628272,0.7908,2514.5,2514.1,3.97747]
[1730491628455,0.7908,2514.5,2514.2,3.97732]
[1730491630240,0.7908,2514.5,2514.2,4.10175989]
[1730491630847,0.7908,2514.5,2514.2,4.10176113]
[1730491631047,0.7908,2514.5,2514.2,3.97732]
[1730491631272,0.7908,2514.5,2514.2,5.01061505]
[1730491631470,0.7908,2514.5,2514.2,4.88617456]
[1730491632290,0.7908,2514.5,2513.9,3.97786]
[1730491632291,4.78865,2514.3,2513.9,3.97786]
[1730491632501,4.78865,2514.3,2514.0,0.12445409]
[1730491632654,4.78865,2514.3,2513.9,3.97786]
[1730491632655,4.78865,2514.3,2514.1,0.12445409]
[1730491632854,4.78865,2514.3,2514.0,0.12445409]
[1730491633095,4.78865,2514.3,2513.9,4.27435675]
[1730491633394,4.78865,2514.3,2514.0,0.12445664]
[1730491633395,0.8114,2514.3,2514.0,0.12445664]
[1730491633693,4.77986,2514.5,2514.1,4.10201664]
[1730491633851,0.8029,2514.5,2514.2,0.12445664]
[1730491634198,4.77984,2514.5,2514.1,3.97756]
[1730491634493,0.8029,2514.5,2514.2,4.10183538]
[1730491634696,0.8029,2514.5,2514.3,0.12444538]
[1730491634883,0.8029,2514.5,2514.3,0.12444219]
[1730491635271,0.8029,2514.5,2514.1,4.27414063]
[1730491635458,0.8029,2514.5,2514.1,3.97753]
[1730491635792,4.77985,2514.5,2514.1,4.27415577]
[1730491636000,4.77985,2514.5,2514.2,0.12444304]
[1730491636293,4.77985,2514.5,2514.3,0.1244521]
[1730491636501,4.77985,2514.5,2514.2,0.12444654]
[1730491636657,4.77985,2514.5,2514.3,0.12444482]
[1730491636857,4.77985,2514.5,2514.1,4.27421502]
[1730491637123,4.77985,2514.5,2514.2,0.12444503]
[1730491637438,4.77985,2514.5,2514.3,0.12444503]
[1730491637561,4.77985,2514.5,2514.1,4.27421502]
[1730491637759,0.8029,2514.5,2514.2,0.12444612]
[1730491638127,4.77985,2514.5,2514.1,0.29671502]
[1730491638402,4.77985,2514.5,2514.2,0.12444595]
[1730491638563,8.75686,2514.5,2514.3,0.12444595]
[1730491638763,8.75686,2514.5,2514.0,4.88877389]
[1730491638963,4.77985,2514.5,2514.1,0.12444626]
[1730491639280,4.77985,2514.5,2514.2,0.12444626]
[1730491639455,4.77985,2514.5,2514.3,0.12444626]
[1730491639656,4.77985,2514.5,2514.0,4.88877389]
[1730491639858,4.77985,2514.5,2514.1,0.42116128]
[1730491640093,4.77985,2514.5,2514.2,0.12444626]
[1730491640300,0.8029,2514.5,2514.3,0.12444626]
[1730491640596,4.77984,2514.5,2514.1,4.27426502]
[1730491640891,4.77984,2514.5,2514.2,0.12444582]
[1730491641070,4.77984,2514.5,2514.3,0.12444582]
[1730491641273,4.77984,2514.5,2514.1,4.27426502]
[1730491641483,3.97709,2514.4,2514.2,0.12444646]
[1730491641708,0.8029,2514.5,2514.0,4.88883389]
[1730491641709,4.77984,2514.5,2514.1,3.97756]
[1730491642003,0.8029,2514.5,2514.2,0.12445087]
[1730491642209,0.8029,2514.5,2514.3,0.12445087]
[1730491642377,0.8029,2514.5,2514.4,0.12445087]
[1730491642786,0.8029,2514.5,2514.2,4.27405502]
[1730491642787,0.8029,2514.5,2514.3,0.12444326]
[1730491643107,0.8029,2514.5,2514.4,0.12444212]
[1730491643289,4.74083,2514.7,2514.4,0.12444212]
[1730491643480,4.74083,2514.7,2514.3,3.97715]
[1730491643682,4.74083,2514.7,2514.4,0.12444394]
[1730491643867,4.74083,2514.7,2514.5,0.1244366]
[1730491644072,4.74083,2514.7,2514.3,4.27356414]
[1730491644298,3.97648,2514.8,2514.4,4.10149736]
[1730491644603,3.97648,2514.8,2514.5,0.12443736]
[1730491644901,3.97648,2514.8,2514.4,4.39236]
[1730491645110,3.97648,2514.8,2514.5,0.12443462]
[1730491645405,3.97648,2514.8,2514.4,0.4153]
[1730491645709,3.97648,2514.8,2514.5,0.12443645]
[1730491646013,3.97648,2514.8,2514.4,4.68878414]
[1730491646167,3.97648,2514.8,2514.5,0.12443488]
[1730491646366,3.97648,2514.8,2514.4,0.4153]
[1730491646706,3.97663,2514.7,2514.5,0.12443463]
[1730491646884,3.97663,2514.7,2514.4,0.4153]
[1730491647212,3.97663,2514.7,2514.5,0.12443601]
[1730491647410,3.97663,2514.7,2514.4,0.4153]
[1730491647572,3.97663,2514.7,2514.5,0.12443793]
[1730491647775,3.97648,2514.8,2514.5,0.12443616]
[1730491647983,3.97648,2514.8,2514.4,4.39238]
[1730491648307,3.97661,2514.7,2514.5,0.12443498]
[1730491648508,3.97661,2514.7,2514.4,0.4153]
[1730491648666,3.97661,2514.7,2514.5,0.12443617]
[1730491649003,3.97661,2514.7,2514.5,0.12443703]
[1730491649614,3.97661,2514.7,2514.4,0.4153]
[1730491649810,3.97661,2514.7,2514.5,0.1244372]
[1730491650404,3.97661,2514.7,2514.5,0.12443654]
[1730491650611,3.97661,2514.7,2514.4,0.4153]
[1730491650612,7.95333,2514.7,2514.4,0.4153]
[1730491650769,3.97653,2514.8,2514.4,4.39238]
[1730491650969,3.97653,2514.8,2514.5,0.1244362]
[1730491651205,3.97645,2514.8,2514.5,0.1244362]
[1730491651515,3.97693,2514.5,2514.2,0.4153]
[1730491651712,4.77373,2514.5,2514.3,0.12444092]
[1730491652002,0.7968,2514.5,2514.4,0.12444101]
[1730491652209,8.75022,2514.7,2514.4,0.12444494]
[1730491652511,3.97681,2514.6,2514.2,4.27382425]
[1730491652828,3.97681,2514.6,2514.3,0.12443709]
[1730491652999,3.97681,2514.6,2514.4,0.12443709]
[1730491653176,5.7357718,2514.7,2514.3,3.97724]
[1730491653366,4.77349,2514.7,2514.4,0.12443706]
[1730491653612,4.77349,2514.7,2514.3,3.97724]
[1730491653791,4.77349,2514.7,2514.4,0.12443581]
[1730491653991,4.77349,2514.7,2514.3,3.97724]
[1730491654194,3.97669,2514.7,2514.4,0.53973561]
[1730491654416,8.77904,2514.9,2514.5,3.97692]
[1730491654591,3.97656,2514.8,2514.5,0.12443452]
[1730491655775,7.95317,2514.8,2514.5,0.12443452]
[1730491655974,3.97656,2514.8,2514.4,4.39236]
[1730491656310,3.97656,2514.8,2514.5,0.12443244]
[1730491656520,3.97656,2514.8,2514.4,5.57554631]
[1730491656679,3.97656,2514.8,2514.5,0.12443212]
[1730491657014,3.97656,2514.8,2514.4,5.57554631]
[1730491657169,3.97656,2514.8,2514.5,0.12443228]
[1730491657368,3.97656,2514.8,2514.4,5.57554631]
[1730491657579,3.97656,2514.8,2514.5,0.12443238]
[1730491657780,3.97656,2514.8,2514.5,0.12443231]
[1730491658018,7.9531,2514.8,2514.4,5.57554631]
[1730491658190,3.97654,2514.8,2514.5,0.12443232]
[1730491659322,3.97662,2514.7,2514.5,0.12443232]
[1730491659482,0.772,2514.6,2514.2,0.19909172]
[1730491659681,4.74878,2514.6,2514.3,0.12444071]
[1730491660120,4.74878,2514.6,2514.4,0.12444071]
[1730491660282,4.74878,2514.6,2514.3,0.12444071]
[1730491660624,4.74878,2514.6,2514.4,0.12444071]
[1730491660791,8.72568,2514.6,2514.3,0.12444071]
[1730491660999,8.72568,2514.6,2514.4,0.12444071]
[1730491661196,3.97693,2514.5,2514.3,0.12444071]
[1730491661395,3.97693,2514.5,2514.2,0.12444071]
[1730491661625,3.97693,2514.5,2514.3,0.12444071]
[1730491661783,3.97693,2514.5,2514.4,0.12443972]
[1730491661979,3.97693,2514.5,2514.2,0.12443972]
[1730491662214,3.97693,2514.5,2514.1,4.68896145]
[1730491662215,3.97693,2514.5,2514.3,0.12443972]
[1730491662417,4.74878,2514.6,2514.4,0.12443972]
[1730491662418,4.74881,2514.6,2514.4,0.12443972]
[1730491662615,0.772,2514.6,2514.3,0.12443972]
[1730491662817,0.772,2514.6,2514.2,0.49522501]
[1730491662818,3.97693,2514.5,2514.4,0.12443972]
[1730491663024,3.97693,2514.5,2514.3,0.12443972]
[1730491663325,3.97709,2514.4,2514.3,0.12443972]
[1730491663530,3.97709,2514.4,2514.1,0.12443972]
[1730491663820,3.97709,2514.4,2514.2,0.12443972]
[1730491664133,3.97709,2514.4,2514.0,4.47292501]
[1730491664134,3.97709,2514.4,2514.3,0.12443972]
[1730491664315,3.97709,2514.4,2514.1,0.12443972]
[1730491664510,3.97709,2514.4,2514.2,0.12443972]
[1730491664830,3.97709,2514.4,2514.3,0.12443972]
[1730491664988,3.97709,2514.4,2514.1,0.12443972]
[1730491665188,3.97709,2514.4,2514.2,0.12443972]
[1730491665501,3.97709,2514.4,2514.0,4.47292501]
[1730491665502,3.97709,2514.4,2514.0,4.27382145]
[1730491665809,3.97709,2514.4,2514.1,0.12444234]
[1730491666130,3.97709,2514.4,2514.2,0.12444234]
[1730491666324,3.97709,2514.4,2514.3,0.12444234]
[1730491666522,3.97709,2514.4,2514.1,0.12444234]
[1730491666713,3.97709,2514.4,2514.2,0.12444234]
[1730491666889,3.97709,2514.4,2514.3,0.12444234]
[1730491667090,3.97709,2514.4,2514.1,0.12444234]
[1730491667312,3.97709,2514.4,2514.2,0.12444234]
[1730491667616,3.97709,2514.4,2514.3,0.12444234]
[1730491668187,0.772,2514.6,2514.3,4.10169234]
[1730491668412,1.644515,2514.6,2514.4,0.12444234]
[1730491668614,1.644515,2514.6,2514.3,3.97725]
[1730491668891,1.644515,2514.6,2514.4,0.12444257]
[1730491669102,1.644515,2514.6,2514.3,4.2736411]
[1730491669301,1.644515,2514.6,2514.3,3.97725]
[1730491669597,5.621305,2514.6,2514.4,0.12444183]
[1730491669787,0.9597985,2514.5,2514.3,0.29645447]
[1730491670004,0.772,2514.6,2514.4,0.12444261]
[1730491670322,0.772,2514.6,2514.5,0.12444196]
[1730491675024,0.772,2514.6,2514.4,0.12444261]
[1730491675335,4.74879,2514.6,2514.4,0.12444261]
[1730491675538,4.73213,2514.5,2514.4,0.12444261]
[1730491675696,8.74898507,2514.5,2514.4,0.12444261]
[1730491680522,4.73213,2514.5,2514.4,0.12444261]
[1730491680705,0.7843,2514.8,2514.4,0.12444261]
[1730491681034,0.7843,2514.8,2514.5,3.97685]
[1730491681398,0.7843,2514.9,2514.6,3.9767]
[1730491681598,0.7843,2514.9,2514.6,4.93046233]
[1730491681797,0.7843,2514.9,2514.7,3.97661]
[1730491682034,4.76084,2515.4,2515.0,3.97603]
[1730491682198,0.7853,2515.4,2515.0,1.87493067]
[1730491682537,4.73508,2515.6,2515.1,3.97591]
[1730491682896,4.73508,2515.6,2515.1,7.95179]
[1730491683210,3.97553,2515.4,2515.0,4.39143]
[1730491683636,3.97544,2515.5,2515.0,4.39143]
[1730491683842,3.97544,2515.5,2515.1,3.97588]
[1730491684130,7.95091,2515.5,2515.0,4.39142]
[1730491684337,7.95088,2515.5,2515.0,4.39142]
[1730491684496,3.97544,2515.5,2515.1,3.97597]
[1730491684700,4.735,2515.6,2515.1,7.95182]
[1730491685436,4.735,2515.6,2515.1,3.97585]